Cogmind - Beta 16 @@@ ROGUE MODE // 2025.11.27 @ 18:03:07 Player: Red Box Result: Destroyed by 3Z-B5H(R) with Subdweller Machine Gun Performance ------------- Evolutions (0) 0 Regions Visited (3) 600 Robots Destroyed (32) 160 Value Destroyed (779) 779 Prototype IDs (0) 0 Alien Tech Used (0) 0 Bonus (35) 35 TOTAL SCORE: 1574 Bonus ------- Follower Combat Kills 35 Cogmind --------- Core Integrity 0/250 Matter 240/300 Energy 150/150 System Corruption 0% Temperature Cool (10) Movement Treading (160) Location -10/Subcaves Parts ------- > --- POWER (1) -------- Light Angular Momentum Engine > --- PROPULSION (2) --- Light Treads Light Treads > --- UTILITY (2) ------ Large Storage Unit Targeting Computer > --- WEAPON (2) ------- Particle Gun Particle Gun > --- INVENTORY (15) --- Subdweller Power Source Subdweller Power Source Compact Wheel Combat Airjet Improved Heat Sink High-capacity Battery (250) High-capacity Matter Pod (200) Machine Analyzer Improved Light Armor Plating Particle Gun Barrage Gun Light Cannon Grenade Launcher Mining Claw Peak State ------------ > --- POWER ------------ Ion Engine > --- PROPULSION ------- Carbon-fiber Leg Carbon-fiber Leg > --- UTILITY ---------- Large Storage Unit Targeting Computer > --- WEAPON ----------- Particle Gun Particle Gun > --- INVENTORY -------- Light Angular Momentum Engine Light Treads Light Treads Compact Wheel Combat Airjet Improved Heat Sink Improved Heat Sink High-capacity Battery High-capacity Matter Pod Targeting Computer Improved Light Armor Plating Particle Gun Light Cannon Grenade Launcher Mining Claw [Rating: 16] Favorites ----------- Power Ion Engine Engine Ion Engine Propulsion Aluminum Leg Treads Light Treads Leg Aluminum Leg Utility Targeting Computer Device Improved Terrain Scanner Storage Medium Storage Unit Processor Targeting Computer Weapon Particle Gun Energy Gun Particle Gun Ballistic Gun Light Assault Rifle Ballistic Cannon Light Cannon Launcher Grenade Launcher Slashing Weapon Mining Claw Build | -11 -10 -10 -10 ------- Run | Yrd Mat Min Sub Slots Evolved . | . . . . Power . | . . . . Propulsion . | . . . . Utility . | . . . . Weapon . | . . . . Parts Attached 32 | 7 15 7 3 Power 5 | 1 3 . 1 Engine 5 | 1 3 . 1 Core . | . . . . Reactor . | . . . . Propulsion 9 | 2 2 3 2 Treads 2 | . . . 2 Leg 7 | 2 2 3 . Wheel . | . . . . Hover . | . . . . Flight . | . . . . Utility 6 | 2 3 1 . Device 1 | 1 . . . Storage 3 | 1 1 1 . Processor 2 | . 2 . . Hackware . | . . . . Protection . | . . . . Artifact . | . . . . Weapon 12 | 2 7 3 . Energy Gun 7 | . 4 3 . Energy Cannon . | . . . . Ballistic Gun 2 | 2 . . . Ballistic Cannon 1 | . 1 . . Launcher 1 | . 1 . . Special Weapon . | . . . . Impact Weapon . | . . . . Slashing Weapon 1 | . 1 . . Piercing Weapon . | . . . . Special Melee Weapon . | . . . . Unidentified Prototypes . | . . . . Parts Lost 6 | . 3 . 3 Power 2 | . 1 . 1 Propulsion 2 | . . . 2 Utility 1 | . 1 . . Weapon 1 | . 1 . . Highest Loss Streak 3 | . 2 . 3 To Critical Strikes . | . . . . Average Backups 10 | 4 9 10 14 Power . | . . . 1 Propulsion 3 | 3 3 3 2 Utility 2 | . 1 3 4 Weapon 3 | . 3 4 4 Tool/Special . | . . . . Unused Backups 15 | . 3 . 12 Power 2 | . . . 2 Propulsion 3 | . 1 . 2 Utility 8 | . 1 . 7 Weapon 2 | . 1 . 1 Tool/Special . | . . . . Average Slot Usage (%) 98 | . 98 99 98 Engine 13 | . 12 14 13 Treads 2 | . . . 14 Leg 25 | . 28 28 13 Device 1 | . 4 . . Storage 14 | . 14 14 14 Processor 11 | . 9 14 14 Energy Gun 19 | . 16 19 27 Ballistic Gun 2 | . 6 . . Launcher 3 | . . 8 . Slashing Weapon 1 | . 3 . . Peak Build Rating 16 | 9 10 16 16 Average Rating 10 | 6 8 11 15 On Entrance 8 | . 9 8 16 Avg Prop Armor Cover (%) . | . . . . Naked Turns . | . . . . Heaviest Build 35 | 11 20 31 35 Greatest Support 40 | 20 20 30 40 Greatest Overweight (x) 3 | 3 . 1 1 Average Overweight (x) . | . . . . Largest Inventory Capacity 15 | 8 10 15 15 Average Capacity 11 | 7 9 11 15 Most Carried 15 | 7 10 15 15 Average Carried 10 | 4 9 10 14 Final Capacity 15 | 8 10 15 15 Final Carried 15 | 7 10 15 14 Class Distribution -------------------- 84% | Mutant 15% | Scavenger-Mutant Dominant Class ---------------- Mutant | -10/Materials Mutant | -10/Mines Mutant | -10/Subcaves Resources | -11 -10 -10 -10 ----------- Run | Yrd Mat Min Sub Matter Collected 1138 | 312 613 188 25 Remotely . | . . . . Salvage Created 811 | 162 502 104 43 Parts 48 | 13 27 6 2 Haulers Intercepted 1 | . 1 . . Recyclers Shooed . | . . . . Parts Field Recycled . | . . . . Retrieved Matter . | . . . . Parts Self-Destructed 7 | . . . 7 Prevented . | . . . . Parts Restored . | . . . . Kills | -11 -10 -10 -10 ------- Run | Yrd Mat Min Sub Combat Hostiles Destroyed 22 | . 12 6 4 Guns 13 | . 8 3 2 Cannons 1 | . 1 . . AOE 8 | . 3 3 2 Classes Destroyed 9 | 2 5 1 1 Builder 1 | . 1 . . Tunneler 4 | 4 . . . Hauler 1 | . 1 . . Recycler 1 | 1 . . . Watcher 3 | . 3 . . Swarmer 6 | . 3 3 . Grunt 12 | . 9 2 1 Demolisher 1 | . . 1 . Subdweller 3 | . . . 3 Best Kill Streak 4 | 2 4 3 3 Combat Bots Only 4 | . 4 3 3 Max Kills in Single Turn 3 | 1 2 3 1 Gunslinging 1 | . 1 . . Exploded 3 | . 1 3 1 Melee . | . . . . Uniques/NPCs Destroyed . | . . . . Combat | -11 -10 -10 -10 -------- Run | Yrd Mat Min Sub Hostile Shots Fired 88 | . 55 10 23 Missed 27 | . 19 1 7 Hits 61 | . 36 9 16 Projectile 61 | . 36 9 16 AOE 5 | . . 2 3 Critical Strikes 1 | . 1 . . Damage Taken 1059 | . 456 182 421 Core 262 | . 100 39 123 Absorbed by Shields . | . . . . Regen/Repaired (Parts) 36 | . 36 . . Core Remaining (%) 100 | 100 . . . Volleys Fired 94 | 21 54 7 12 Largest 2 | 2 2 2 2 Hottest 130 | 40 100 130 130 Shots Fired 188 | 42 108 14 24 Gun 168 | 42 94 13 19 Cannon 13 | . 13 . . Launcher 7 | . 1 1 5 Special . | . . . . Kinetic 89 | 42 47 . . Thermal 64 | . 32 13 19 Explosive 7 | . 1 1 5 Electromagnetic 28 | . 28 . . Robot Hit Streak 13 | 9 10 9 13 Robot Miss Streak 3 | 3 3 1 3 Penetration Max . | . . . . Secondary Targets 2 | . 1 1 . Max Gunslinging Chain 1 | . 1 1 . Shots Hit Robots 124 | 28 69 9 18 Core Hits 54 | 10 28 8 8 Critical Kills . | . . . . Critical Parts Destroyed . | . . . . Critical Strikes 6 | . 4 1 1 Burn 6 | . 4 1 1 Melee Attacks 13 | . 13 . . Impact . | . . . . Slashing 13 | . 13 . . Piercing . | . . . . Sneak Attacks . | . . . . Combat Hostiles . | . . . . Follow-up Attacks . | . . . . Damage Inflicted 2119 | 227 1011 238 643 Guns 1273 | 227 700 128 218 Cannons 156 | . 156 . . Explosions 690 | . 155 110 425 Melee . | . . . . Ramming . | . . . . Kinetic 522 | 227 295 . . Thermal 718 | . 372 128 218 Explosive 626 | . 91 110 425 Electromagnetic 253 | . 253 . . Impact . | . . . . Slashing . | . . . . Piercing . | . . . . Highest Corruption . | . . . . Average Corruption . | . . . . Corruption Purged . | . . . . Corruption Blocked . | . . . . Overload Shots . | . . . . Overflow Damage . | . . . . Projectiles . | . . . . Explosions . | . . . . Melee . | . . . . Knockbacks . | . . . . Impact . | . . . . Kinetic . | . . . . Secondary . | . . . . Self-Inflicted Damage . | . . . . Shots . | . . . . Rammed . | . . . . Targets Rammed . | . . . . Kicked . | . . . . Crushed . | . . . . Highest Temperature 219 | . 219 144 45 Average Temperature 55 | . 56 62 23 Received Heat Transfer 321 | . 267 36 18 Siege Activations . | . . . . Martial Activations . | . . . . Shielding Activations . | . . . . Robots Disrupted . | . . . . Combat Hostiles . | . . . . Robots Corrupted . | . . . . Combat Hostiles . | . . . . Parts Fried . | . . . . Impact Corruptions . | . . . . Robots Melted . | . . . . Combat Hostiles . | . . . . Parts Melted 7 | . 5 1 1 Heat Transferred 2246 | . 1284 407 555 Parts Sabotaged . | . . . . Parts Stolen . | . . . . Parts Stripped . | . . . . Power Chain Reactions 1 | . 1 . . Alert | -11 -10 -10 -10 ------- Run | Yrd Mat Min Sub Maximum Alert Level . | . . . . Low Security (%) 100 | 100 100 100 . Level 1 . | . . . . Level 2 . | . . . . Level 3 . | . . . . Level 4 . | . . . . Level 5 . | . . . . High Security . | . . . . Max Security . | . . . . Peak Influence 149 | 5 149 76 . Initial 9 | . 3 9 . Average 20 | 1 34 8 . Influence Increases 702 | 25 463 184 30 Destroy 0b10 Robot/C 400 | . 240 140 20 Destroy 0b10 Robot/NC 50 | 25 25 . . Destroy Leader 88 | . 58 20 10 Allied During Kill 3 | . . 3 . Trap Triggered on 0b10 10 | . 10 . . Successful Hack 39 | . 39 . . Select Force Hacks 60 | . 60 . . Disable Machine 15 | . . 15 . Destroy Structure 22 | . 16 6 . Lose Combat Pursuer 15 | . 15 . . Influence Decreases 702 | 20 442 194 46 Entered New Map 28 | . 2 17 9 Time Decay 662 | 20 428 177 37 Lost Part 12 | . 12 . . Squads Dispatched 4 | . 4 . . Investigation 4 | . 4 . . Extermination . | . . . . Reinforcement . | . . . . Assault . | . . . . Garrison . | . . . . Intercept . | . . . . Searches Triggered . | . . . . Construction Impeded . | . . . . Haulers Reinforced . | . . . . Active Scanning Responses . | . . . . Cargo Convoy Interrupts . | . . . . Stealth | -11 -10 -10 -10 --------- Run | Yrd Mat Min Sub Distress Signals 2 | . 2 . . Communications Jammed . | . . . . Distress Signals . | . . . . Times Spotted 30 | . 16 9 5 Peak Tracking Total 3 | . 3 3 3 Tactical Retreats 1 | . 1 . . Traps | -11 -10 -10 -10 ------- Run | Yrd Mat Min Sub Traps Triggered 1 | . 1 . . Indirectly . | . . . . Trap Hack Attempts . | . . . . Triggered . | . . . . Disarmed . | . . . . Reprogrammed 6 | . 6 . . Reused 1 | . 1 . . Traps Extracted . | . . . . Installed . | . . . . Triggered 1 | . 1 . . Machines | -11 -10 -10 -10 ---------- Run | Yrd Mat Min Sub Machines Disabled 1 | . . 1 . Max in Single Turn . | . . . . Machines Repaired . | . . . . Machines Dismantled . | . . . . Machines Sabotaged . | . . . . Overloaded Fab Kills . | . . . . Hacking | -11 -10 -10 -10 --------- Run | Yrd Mat Min Sub Machines Accessed 11 | . 11 . . Terminals 8 | . 8 . . Fabricators . | . . . . Repair Stations 1 | . 1 . . Recycling Units 2 | . 2 . . Scanalyzers . | . . . . Garrison Access . | . . . . Total Hacks 36 | . 36 . . Successful 22 | . 22 . . Failed 13 | . 13 . . Catastrophic 3 | . 3 . . Database Lockouts 1 | . 1 . . Manual 25 | . 25 . . Terminals 28 | . 28 . . Fabricators . | . . . . Repair Stations 2 | . 2 . . Recycling Units 6 | . 6 . . Scanalyzers . | . . . . Garrison Access . | . . . . Terminal Hacks 6 | . 6 . . Robot Analysis 4 | . 4 . . Locate Traps 1 | . 1 . . Reprogram Traps 1 | . 1 . . Fabricator Hacks . | . . . . Repair Station Hacks 2 | . 2 . . Scan Component 1 | . 1 . . Repair 1 | . 1 . . Recycling Unit Hacks 2 | . 2 . . Retrieve Components 2 | . 2 . . Scanalyzer . | . . . . Garrison Access Hacks . | . . . . Unauthorized Hacks 12 | . 12 . . Terminals 9 | . 9 . . Track 1 | . 1 . . Botnet 2 | . 2 . . Operators 1 | . 1 . . Skim 5 | . 5 . . Fabricators . | . . . . Repair Stations . | . . . . Recycling Units 3 | . 3 . . Reject 1 | . 1 . . Tunnel 2 | . 2 . . Scanalyzers . | . . . . Garrison Access . | . . . . Data Cores Recovered . | . . . . Used . | . . . . Hacking Detections 11 | . 11 . . Full Trace Events 2 | . 2 . . Feedback Events . | . . . . Feedback Blocked . | . . . . Robot Schematics Acquired . | . . . . Robots Built . | . . . . Authchips . | . . . . Time . | . . . . Total Robot Build Rating . | . . . . Part Schematics Acquired . | . . . . Parts Built . | . . . . Authchips . | . . . . Time . | . . . . Total Part Build Rating . | . . . . Part Studies Acquired . | . . . . Parts Repaired 1 | . 1 . . Time 32 | . 32 . . Parts Recycled . | . . . . Recycled Matter . | . . . . Retrieved Matter . | . . . . Retrieved Components 1 | . 1 . . Parts Scanalyzed . | . . . . Part Schematics Acquired . | . . . . Parts Damaged . | . . . . Bothacking | -11 -10 -10 -10 ------------ Run | Yrd Mat Min Sub Used RIF Installer . | . . . . Robots Hacked . | . . . . Non-combat . | . . . . Combat . | . . . . Robot Hacks Applied . | . . . . Relay Couplers Released . | . . . . Fabnet Peak Effective % . | . . . . Robots Rewired . | . . . . Allies Hacked . | . . . . Hacks Repelled . | . . . . Allies | -11 -10 -10 -10 -------- Run | Yrd Mat Min Sub Total Allies 1 | . . 1 . Largest Group 1 | . . 1 . Highest-Rated Group 31 | . . 31 . Highest-Rated Ally 31 | . . 31 . Total Orders . | . . . . Ally Attacks 7 | . . 7 . Total Damage 106 | . . 106 . Kills 1 | . . 1 . Allies Corrupted . | . . . . Allies Melted . | . . . . Intel | -11 -10 -10 -10 ------- Run | Yrd Mat Min Sub Active Infowar (turns) 552 | 81 471 . . Terrain 552 | 81 471 . . Robot Analysis Total 4 | . 4 . . Derelict Logs Recovered 1 | . . 1 . Drone Launches . | . . . . Drone Recoveries . | . . . . Exploration | -11 -10 -10 -10 ------------- Run | Yrd Mat Min Sub Turns Passed 3556 | 178 1468 1323 587 Spaces Moved 2284 | 89 968 939 288 Core 10 | 10 . . . Treads 157 | . . . 157 Legs 2117 | 79 968 939 131 Wheels . | . . . . Hover . | . . . . Flight . | . . . . Fastest Speed 50 | 50 120 120 160 Average Speed 130 | 120 120 128 173 Slowest Speed 200 | 200 120 190 190 Overloaded Moves . | . . . . Propulsion Burnouts . | . . . . Robots Hopped . | . . . . Potential Cave-ins . | . . . . Cave-ins Triggered . | . . . . Exploration Rate (%) 55 | 4 97 97 24 Regions Visited 3 Branch Regions 2 Pre-discovered Areas 3 | . 2 1 . Known Exits Taken 1 | . . 1 . Unknown Exits Taken 2 | 1 1 . . Scrap Searched 1 | . . 1 . Spaces Dug 8 | . 8 . . Terrain Destroyed 33 | . 15 6 12 Melee 8 | . 8 . . Projectile . | . . . . AOE 25 | . 7 6 12 Terrain Rammed . | . . . . Walls Destroyed . | . . . . Machines Disabled . | . . . . Actions | -11 -10 -10 -10 --------- Run | Yrd Mat Min Sub Total 2657 | 123 1145 1038 351 Wait 169 | . 61 68 40 Move 2281 | 88 967 938 288 Hop . | . . . . Pick Up 31 | 7 13 7 4 Fast Attach 11 | 7 3 1 . Attach 9 | . 5 1 3 Detach 2 | . 1 1 . Swap 28 | . 17 9 2 Drop 19 | . 11 6 2 Fire 94 | 21 54 7 12 Melee 13 | . 13 . . Ram . | . . . . Kick . | . . . . Crush . | . . . . Escape Stasis . | . . . . Rewire . | . . . . Trap . | . . . . Miscellaneous . | . . . . Route ------- -11/Scrapyard -10/Materials (discovered 6 exits: *Mat x3 / [*Min x2] / Sub) -10/Mines (discovered 3 exits: *Mat x2 / *Sub) -10/Subcaves (discovered 2 exits: *Mat x2) History --------- Turn | Location | Event 27 | -11/Scrapyard | Discovered new exit (range 16) 179 | -11/Scrapyard | Entered Materials 350 | -10/Materials | Build established: Mutant 433 | -10/Materials | Discovered new exit (range 8) 546 | -10/Materials | Discovered new exit (range 8) 801 | -10/Materials | Discovered new exit (range 11) 831 | -10/Materials | Learned location of 2 exits from Subcaves 867 | -10/Materials | Learned 2 Storage zone layouts 893 | -10/Materials | Learned 2 Storage zone layouts 910 | -10/Materials | Identified exit to Materials 916 | -10/Materials | Identified exit to Subcaves 921 | -10/Materials | Learned Storage trap positions 938 | -10/Materials | Loaded intel: 2 recycling unit locations 963 | -10/Materials | Learned 2 Mines zone layouts 995 | -10/Materials | Central database locked down 1175 | -10/Materials | Discovered new exit (range 9) 1594 | -10/Materials | Repaired Particle Gun 1647 | -10/Materials | Entered Mines 1658 | -10/Mines | Escorted by a lone wolf Derelict 1694 | -10/Mines | Learned Materials interactive machine intel 1697 | -10/Mines | Met a Derelict bent on vengeance 1700 | -10/Mines | Discovered exit to Materials (range 4) 2070 | -10/Mines | Discovered exit to Subcaves (range 12) 2169 | -10/Mines | Assembled infested the area 2174 | -10/Mines | Assisted by a Guerilla fighting off Assembled 2667 | -10/Mines | Discovered exit to Materials (range 15) 2954 | -10/Mines | Core integrity fell below 50% 2970 | -10/Mines | Entered Subcaves 2971 | -10/Subcaves | Approached by a straggling Scientist 2971 | -10/Subcaves | Identified exit to Materials 2984 | -10/Subcaves | Build established: Scavenger-Mutant 3030 | -10/Subcaves | Shifting Twisted Machinery released Sub. Power Source 3091 | -10/Subcaves | Shifting Twisted Machinery released Barrage Gun 3239 | -10/Subcaves | Ambushed by Subdweller buried in earth 3251 | -10/Subcaves | Core integrity fell below 20% 3277 | -10/Subcaves | Lost 3 parts (1p2n) 3533 | -10/Subcaves | Build established: Mutant 3557 | -10/Subcaves | Destroyed by 3Z-B5H(R) with Subdweller Machine Gun Last Messages --------------- 03240_ UI-S5T(R): "THANKSYOU!" 03242_ 1E-SZG(c) destroyed. 03246_ Carbon-fiber Leg destroyed. 03247_ I3-9HS(R) destroyed. 03247_ Destroyed Scrap Shield. 03247_ FG-YLU(R) suffers critical hit (Burn). 03249_ The unstable cave ceiling collapses. 03250_ FG-YLU(R) destroyed. 03251_ Subatomizers dissect the Machine Analyzer. 03258_ The unstable cave ceiling collapses. 03262_ Sub. Machine Gun melted. 03262_ UI-S5T(R) destroyed. 03264_ Subatomizers dissect the Machine Analyzer. 03266_ Acquired 13 matter. 03270_ Acquired Sub. Power Source. 03280_ Acquired 6 matter. 03283_ Acquired Machine Analyzer. 03300_ The unstable cave ceiling collapses. 03302_ Subatomizers dissect the Lgt. Ion Engine. 03496_ Acquired 6 matter. Map ----- +----------------------------------------------------+ | ?????????????????????????????????????????????????? | | ?????????????????????????????????????????????????? | | ?????????????????????????????????????????????????? | | ?????????????????????????????????????????????????? | | ?????????????????????????????????????????????????? | | ?????????????????????????????????????????????????? | | ?????????????????????????????????????????????????? | | ?????????????????????????????????????????????????? | | ?????????????????????????????????????????????????? | | ?????????????????????????????????????????????????? | | ?????????????????????????????????????????????????? | | ?????????????????????????????????????????????????? | | ?????????????????????????????????????????????????? | | ?????????????????????????????????????????????????? | | ?????????????????????????????????????????????????? | | ?????????????????????????????????????????????????? | | ?????????????????????????????????????????????????? | | ????????????????????????????????????? ???????????? | | ???????????????????????????????? #?#? ??????????? | | ???????????????????????????????? #??????????? | | ????????????????????????????????# %#??????????? | | ???????????????????????????????? &" #??????????? | | ??????????????????????????###??? " ???????????? | | ????????????????????????### ###?" "& ???????????? | | ????????????????????????# #??" ???????????? | | ??????????"""???????????#@ R #??# #??????###??? | | ????????# """#??????????#### #??? #??????# ??? | | ????????#"" ?????????????# ##??# #??????# ?? | | ?????????" ????????????## #??# ###??#### #? | | ?????????# ???????###### ##?# #### ## ## | | ?????????# "??????# ### # | | ?????????# ""??????# | | ????????## " ?????## #### | | ??? ### "" ###?## ##### ### ### ## | | ????# "" ### ##???# ##?# | | ????# " ###????# #??## | | ???# "" #??????# ##???## ## # # | | ????? " #########??????## ##?????########## | | ????##########????????????????####???????????????? | | ?????????????????????????????????????????????????? | | ?????????????????????????????????????????????????? | | ?????????????????????????????????????????????????? | | ?????????????????????????????????????????????????? | | ?????????????????????????????????????????????????? | | ?????????????????????????????????????????????????? | | ?????????????????????????????????????????????????? | | ?????????????????????????????????????????????????? | | ?????????????????????????????????????????????????? | | ?????????????????????????????????????????????????? | | ?????????????????????????????????????????????????? | +----------------------------------------------------+ Best States ------------- Heat Dissipation 25 Energy Generation 18 Energy Capacity 250 Matter Stores 300 Matter Capacity 300 Sight Range 16 Terrain Scan Range 16 Terrain Scan Density 10 Evasion (%) 55 Targeting Accuracy 5 Recoil Reduction 2 Item Schematics ----------------- None Robot Schematics ------------------ None Fabricated ------------ Nothing Repaired ---------- Particle Gun | 52% | -10/Materials Studied --------- None Alien Tech Used ----------------- None Achievements -------------- None Challenges ------------ None Game ------ Seed DisposableCargoCharge Manual? 0 Play Time 00:24:34 Cumulative 736.5 hours Start 2025.11.27 @ 17:39:02 End 2025.11.27 @ 18:03:07 Sessions 1 Manual Loads 0 Difficulty Rogue Special Mode None Game No. 518 Rogue 518 Adventurer 0 Explorer 0 Win Type - Total 1 Types 1/0/0/0/0/0/0/0/0/0 Lore% 71 Gallery% 68 Achievement% 47 Wizard Run 0 Options --------- Layout 1 ASCII 0 Keyboard 0 Movement Mouse Keybinds 0 Fullscreen 1 Font 20/SmallcapsGlow Map View 54x42 Zoom Use 0% Tactical HUD 1 Map Filters NONE Filters NONE Steam 1 RUN: f7077ae3-1013-414e-800e-7facf05f1a21